bitfinex/quotes_BTCUSD_20251016
["timestamp","ask_amount","ask_price","bid_price","bid_amount"]
[1760622333011,0.34156076,111620.0,111610.0,0.17919541]
[1760622333241,0.00156076,111620.0,111610.0,0.17919541]
[1760622334429,0.18074011,111620.0,111610.0,0.17919541]
[1760622334664,0.18132405,111620.0,111610.0,0.17919541]
[1760622334898,4.76462905,111620.0,111610.0,0.17919541]
[1760622335627,4.78132588,111620.0,111610.0,0.17919541]
[1760622336395,4.60214675,111620.0,111610.0,0.17919541]
[1760622336627,0.0021447,111620.0,111610.0,0.17919541]
[1760622337084,0.18132405,111620.0,111610.0,0.17919541]
[1760622337287,0.19803442,111620.0,111610.0,0.17919541]
[1760622337591,4.78133942,111620.0,111610.0,0.17919541]
[1760622337829,0.01885507,111620.0,111610.0,0.17919541]
[1760622338069,0.0021447,111620.0,111610.0,0.19493124]
[1760622338315,0.0021447,111620.0,111610.0,0.17919541]
[1760622338581,0.01886173,111620.0,111610.0,0.19318657]
[1760622339291,0.19804108,111620.0,111610.0,0.01399116]
[1760622339516,4.76250041,111610.0,111600.0,0.00014967]
[1760622339738,0.00141101,111590.0,111580.0,0.18820532]
[1760622339973,0.00141101,111590.0,111580.0,0.27789544]
[1760622340498,0.00141101,111590.0,111570.0,0.18822187]
[1760622340736,0.00141101,111590.0,111580.0,0.17924359]
[1760622341204,0.00141101,111590.0,111580.0,0.19543784]
[1760622341439,0.00141101,111590.0,111580.0,0.28512796]
[1760622341670,0.51919541,111610.0,111600.0,0.17921146]
[1760622341898,0.5360871,111610.0,111600.0,0.17921146]
[1760622342124,0.35689169,111610.0,111600.0,0.17921146]
[1760622342348,0.01689169,111610.0,111600.0,0.17921146]
[1760622342566,0.01689169,111610.0,111600.0,0.21505393]
[1760622342567,0.00014953,111610.0,111600.0,0.21505393]
[1760622343507,0.01690083,111610.0,111600.0,0.21505393]
[1760622343782,0.01690083,111610.0,111600.0,0.21349328]
[1760622344926,0.01690083,111610.0,111600.0,0.3031834]
[1760622345131,0.00014953,111610.0,111600.0,0.3031834]
[1760622346827,0.00014953,111610.0,111600.0,1.06929662]
[1760622347548,0.00014953,111610.0,111600.0,0.33936568]
[1760622347786,0.00014953,111610.0,111600.0,0.43044568]
[1760622348265,0.00014953,111610.0,111600.0,0.35942093]
[1760622348502,0.00014953,111610.0,111600.0,0.17865081]
[1760622348741,0.51934494,111610.0,111600.0,0.001]
[1760622348979,0.17921146,111600.0,111580.0,0.17924017]
[1760622349211,0.19596422,111600.0,111580.0,0.27032017]
[1760622349458,0.53596422,111600.0,111590.0,0.17922752]
[1760622349932,0.35675276,111600.0,111590.0,0.17922752]
[1760622350435,0.35675276,111600.0,111590.0,0.18735085]
[1760622350662,0.00014953,111610.0,111600.0,0.17921146]
[1760622350901,0.00014953,111610.0,111600.0,0.1971326]
[1760622351130,0.01689838,111610.0,111600.0,0.1971326]
[1760622351367,0.01689838,111610.0,111600.0,0.23476861]
[1760622351594,0.01689838,111610.0,111600.0,0.21684747]
[1760622352503,0.01689838,111610.0,111600.0,0.17921146]
[1760622352768,5.59002532,111610.0,111600.0,0.01019649]
[1760622353012,5.61087928,111610.0,111600.0,0.17921146]
[1760622354185,5.61087652,111610.0,111600.0,0.17921146]
[1760622354415,4.94176424,111610.0,111600.0,0.17921146]
[1760622354623,0.35845924,111610.0,111600.0,0.1971326]
[1760622354839,0.01845828,111610.0,111600.0,0.23297643]
[1760622355053,0.01845828,111610.0,111600.0,0.21505529]
[1760622355289,0.00014953,111610.0,111600.0,0.17921146]
[1760622355517,0.00014953,111610.0,111600.0,0.1971326]
[1760622356385,0.00014953,111610.0,111600.0,0.2882126]
[1760622356598,0.00014953,111610.0,111600.0,0.27029146]
[1760622356818,0.00014953,111610.0,111600.0,0.44966366]
[1760622357079,0.00014953,111610.0,111600.0,0.92028743]
[1760622357321,0.00014953,111610.0,111600.0,0.35998158]
[1760622357941,0.00014953,111610.0,111600.0,0.27029146]
[1760622359540,0.00014953,111610.0,111600.0,0.86678763]
[1760622360677,0.00014953,111610.0,111600.0,0.86778763]
[1760622360916,0.00014953,111610.0,111600.0,0.95746971]
[1760622362070,1.51e-06,111610.0,111600.0,0.86638971]
[1760622362296,1.51e-06,111610.0,111600.0,0.95746971]
[1760622362769,1.51e-06,111610.0,111600.0,0.86638971]
[1760622363010,1.51e-06,111610.0,111600.0,0.95746971]
[1760622363519,1.51e-06,111610.0,111600.0,0.39576594]
[1760622363770,1.51e-06,111610.0,111600.0,0.26990158]
[1760622364005,0.17919692,111610.0,111600.0,0.001]
[1760622364227,0.17927148,111570.0,111550.0,0.18419393]
[1760622364471,0.64989525,111570.0,111550.0,0.0717521]
[1760622364703,5.10258072,111560.0,111540.0,0.17929694]
[1760622364966,0.51930787,111540.0,111530.0,0.0717521]
[1760622365172,5.63022931,111540.0,111510.0,0.18826282]
[1760622365395,0.47062377,111520.0,111510.0,0.18876201]
[1760622365622,0.47062377,111520.0,111510.0,0.17979421]
[1760622365845,0.47062377,111520.0,111510.0,0.00049919]
[1760622365846,0.64996379,111520.0,111510.0,0.00049919]
[1760622366100,0.64996379,111520.0,111510.0,0.1798553]
[1760622366314,0.64996379,111520.0,111510.0,0.00049919]
[1760622366541,0.64996379,111520.0,111510.0,0.1798553]
[1760622366777,0.65152598,111520.0,111510.0,0.00049919]
[1760622367002,1.18870083,111520.0,111510.0,0.00049919]
[1760622367233,6.11200583,111520.0,111510.0,0.00049919]
[1760622368199,5.64138206,111520.0,111510.0,0.00049919]
[1760622368692,6.11200583,111520.0,111510.0,0.00049919]
[1760622368923,5.64138206,111520.0,111510.0,0.00049919]
[1760622369140,6.11200583,111520.0,111510.0,0.00049919]
[1760622369412,6.11044364,111520.0,111510.0,0.00049919]
[1760622369647,0.81062377,111490.0,111480.0,0.25155647]
[1760622369950,0.34,111490.0,111480.0,0.25170449]
[1760622370198,4.583305,111500.0,111490.0,0.17938828]
[1760622372596,5.18326343,111520.0,111500.0,0.17935822]
[1760622372831,0.64997988,111510.0,111500.0,0.17935822]
[1760622373039,4.583305,111510.0,111500.0,0.17935822]
[1760622373916,5.23328488,111510.0,111490.0,0.17938828]
[1760622374136,5.05392877,111500.0,111490.0,0.17938828]
[1760622374434,0.71713416,111510.0,111490.0,0.1973271]
[1760622374621,5.30043916,111510.0,111500.0,0.17937219]
[1760622374877,4.76267719,111500.0,111490.0,0.17938828]
[1760622375108,0.71713416,111510.0,111500.0,0.17937219]
[1760622375342,5.30043916,111510.0,111500.0,0.17937219]
[1760622375560,0.2631132,111510.0,111500.0,0.18617981]
[1760622376036,4.64944446,111510.0,111500.0,0.18617981]
[1760622376244,4.98944446,111510.0,111500.0,0.18617981]
[1760622376463,5.47918008,111510.0,111500.0,0.00680762]
[1760622376678,5.47918008,111510.0,111500.0,0.18617981]
[1760622376888,0.87676323,111510.0,111500.0,0.18617981]
[1760622377141,5.47918173,111510.0,111500.0,0.18617981]
[1760622377369,5.47918174,111510.0,111500.0,0.18617981]
[1760622378460,5.51114863,111510.0,111500.0,0.18617981]
[1760622378684,5.51114863,111510.0,111500.0,0.00680762]
[1760622378895,5.54340513,111510.0,111500.0,0.00680762]
[1760622379312,5.55939247,111510.0,111500.0,0.00680762]
[1760622379538,5.59118743,111510.0,111500.0,0.00680762]
[1760622379737,5.55939247,111510.0,111500.0,0.00680762]
[1760622380161,5.57445847,111510.0,111500.0,0.00680762]
[1760622380369,5.52650424,111510.0,111500.0,0.00680762]
[1760622380804,5.57416758,111510.0,111500.0,0.00680762]
[1760622381015,5.65512961,111510.0,111500.0,0.00680762]
[1760622382103,5.65511508,111510.0,111500.0,0.00680762]
[1760622382311,5.65510074,111510.0,111500.0,0.00680762]
[1760622382537,5.26269328,111490.0,111480.0,0.00054802]
[1760622382751,5.30800515,111490.0,111480.0,0.00054802]
[1760622383171,0.38293119,111490.0,111480.0,0.17995239]
[1760622383432,5.61624824,111490.0,111480.0,0.00054802]
[1760622383645,5.61624824,111490.0,111480.0,0.17995239]
[1760622383857,5.43685996,111490.0,111480.0,0.17995239]
[1760622384073,0.56231947,111490.0,111480.0,0.17995239]
[1760622384282,0.38293119,111490.0,111480.0,0.17995239]
[1760622384950,0.35911351,111490.0,111480.0,0.17995239]
[1760622385173,1.03294324,111490.0,111480.0,0.17995239]
[1760622385383,0.38293119,111490.0,111480.0,0.17995239]
[1760622385809,0.35911351,111490.0,111480.0,0.17995239]
[1760622386034,0.38293119,111490.0,111480.0,0.17995239]
[1760622388049,0.39947133,111490.0,111480.0,0.17995239]
[1760622388258,0.43122824,111490.0,111480.0,0.18882235]
[1760622388765,0.39947133,111490.0,111480.0,0.18882235]
[1760622389217,0.09122824,111490.0,111480.0,0.18882235]
[1760622390312,0.27061652,111490.0,111480.0,0.00941798]
[1760622390534,5.68836298,111490.0,111480.0,0.00941798]
[1760622390756,5.68836298,111490.0,111480.0,0.18882235]
[1760622391429,5.65660607,111490.0,111480.0,0.18882235]
[1760622392298,5.6089707,111490.0,111480.0,0.18882235]
[1760622392536,5.67273763,111490.0,111480.0,0.18882235]
[1760622392756,5.67273763,111490.0,111480.0,0.00941798]
[1760622392994,4.583305,111480.0,111470.0,0.17941711]
[1760622393215,0.08343591,111480.0,111470.0,0.17956681]
[1760622393437,1.02568179,111480.0,111470.0,0.00073478]
[1760622393684,5.60898679,111480.0,111470.0,0.00073478]
[1760622393932,5.60898679,111480.0,111440.0,0.17942611]
[1760622393933,0.34,111460.0,111440.0,0.18843835]
[1760622394156,0.03565365,111460.0,111450.0,0.0717521]
[1760622394373,0.03565365,111460.0,111450.0,0.19739792]
[1760622394602,0.03565365,111460.0,111450.0,0.75770377]
[1760622394824,0.03565365,111460.0,111450.0,0.26913474]
[1760622395068,0.03565365,111460.0,111450.0,0.82944863]
[1760622395743,0.01654014,111460.0,111450.0,0.82944863]
[1760622396608,0.01654014,111460.0,111450.0,0.26914278]
[1760622396859,0.01654014,111460.0,111450.0,0.17945266]
[1760622397083,0.01654014,111460.0,111450.0,0.19839792]
[1760622397314,0.01654014,111460.0,111450.0,0.18045266]
[1760622397980,0.01654014,111460.0,111450.0,0.27014278]
[1760622398201,0.01654014,111460.0,111450.0,0.30905945]
[1760622398429,0.01917373,111480.0,111470.0,0.17942047]
[1760622400006,0.20492105,111490.0,111480.0,0.17940437]
[1760622400218,0.21324607,111490.0,111480.0,0.17940437]
[1760622401176,0.21324607,111490.0,111480.0,0.17955421]
[1760622401853,0.70217135,111490.0,111480.0,0.17955421]
[1760622402115,0.67024333,111490.0,111480.0,0.17955421]
[1760622402349,0.17938828,111490.0,111480.0,0.17955421]
[1760622402587,0.18095089,111490.0,111480.0,0.17955421]
[1760622402831,0.17938828,111490.0,111480.0,0.17955421]
[1760622403317,0.68193722,111490.0,111480.0,0.00014984]
[1760622403322,5.26524222,111490.0,111480.0,0.00014984]
[1760622403564,4.79461845,111490.0,111480.0,0.17955421]
[1760622404009,4.76269328,111490.0,111480.0,0.17955421]
[1760622404254,5.13461845,111490.0,111480.0,0.17955421]
[1760622405184,4.95523017,111490.0,111480.0,0.17955421]
[1760622405405,4.96741651,111490.0,111480.0,0.17955421]
[1760622405880,5.14680479,111490.0,111480.0,0.17955421]
[1760622406544,4.96741651,111490.0,111480.0,0.17955421]
[1760622406767,5.14680479,111490.0,111480.0,0.17955421]
[1760622408380,5.58550339,111490.0,111480.0,0.17955421]
[1760622408614,5.58550339,111490.0,111480.0,0.00014984]
[1760622409058,5.58550339,111490.0,111480.0,0.17955421]
[1760622409278,4.93549134,111490.0,111480.0,0.17955421]
[1760622409780,5.11487962,111490.0,111480.0,0.00014984]
[1760622410223,5.58550339,111490.0,111480.0,0.00014984]
[1760622410447,5.65371273,111490.0,111480.0,0.00014984]
[1760622411151,5.68407528,111490.0,111480.0,0.00014984]
[1760622411380,5.65215011,111490.0,111480.0,0.00014984]
[1760622411605,5.91143189,111490.0,111480.0,0.00014984]
[1760622411827,5.91243189,111490.0,111480.0,0.00014984]
[1760622412276,5.9924207,111490.0,111480.0,0.00014984]
[1760622412512,5.96019271,111490.0,111480.0,0.00014984]
[1760622412736,5.23028716,111490.0,111480.0,0.00014984]
[1760622413430,5.18239941,111490.0,111480.0,0.00014984]
[1760622414105,5.19232251,111490.0,111480.0,0.00014984]
[1760622414332,0.60901751,111490.0,111480.0,0.17955421]
[1760622414548,0.60901751,111490.0,111480.0,0.00014984]
[1760622414766,0.57691645,111490.0,111480.0,0.00014984]
[1760622415014,5.15922145,111490.0,111480.0,0.00014984]
[1760622415229,5.19132634,111490.0,111480.0,0.00014984]
[1760622415670,0.396532,111490.0,111480.0,0.17955421]
[1760622415892,0.57592028,111490.0,111480.0,0.17955421]
[1760622416365,0.056532,111490.0,111480.0,0.17955421]
[1760622416585,0.03726912,111490.0,111480.0,0.17955421]
[1760622417025,0.03727284,111490.0,111480.0,0.17955421]
[1760622418142,0.03571014,111490.0,111480.0,0.17955421]
[1760622419038,0.21509842,111490.0,111480.0,0.17955421]
[1760622419255,0.03571014,111490.0,111480.0,0.17955421]
[1760622419688,0.21509842,111490.0,111480.0,0.17955421]
[1760622420367,4.79840342,111490.0,111480.0,0.00014984]
[1760622420599,5.54757185,111490.0,111480.0,0.00014984]
[1760622421270,4.81922897,111490.0,111480.0,0.00014984]
[1760622421572,4.81922897,111490.0,111480.0,0.17955421]
[1760622421787,0.05653569,111490.0,111480.0,0.17955421]
[1760622422013,0.0372813,111490.0,111480.0,0.17955421]
[1760622422452,0.55666958,111490.0,111480.0,0.17955421]
[1760622422682,0.57594532,111490.0,111480.0,0.00014984]
[1760622422923,5.15925032,111490.0,111480.0,0.00014984]
[1760622423622,5.14251144,111490.0,111480.0,0.17955421]
[1760622423860,5.14251144,111490.0,111480.0,0.00014984]
[1760622424124,5.14251144,111490.0,111480.0,0.17955421]
[1760622424580,5.15925549,111490.0,111480.0,0.00014984]
[1760622425055,5.88916104,111490.0,111480.0,0.00014984]
[1760622425712,5.14251144,111490.0,111480.0,0.17955421]
[1760622425945,0.55920644,111490.0,111480.0,0.00014984]
[1760622426177,5.14251144,111490.0,111480.0,0.00014984]
[1760622426437,0.55920644,111490.0,111480.0,0.17955421]
[1760622426678,0.37981816,111490.0,111480.0,0.17955421]
[1760622426914,0.53994356,111490.0,111480.0,0.00014984]
[1760622427141,5.87241699,111490.0,111480.0,0.00014984]
[1760622428017,5.8891636,111490.0,111480.0,0.00014984]
[1760622428220,5.93876878,111490.0,111480.0,0.00014984]
[1760622428644,5.93720611,111490.0,111480.0,0.00014984]
[1760622428866,5.95848387,111490.0,111460.0,0.00058516]
[1760622429078,5.99263102,111470.0,111460.0,0.00058516]
[1760622429341,5.86026225,111470.0,111460.0,0.00058516]
[1760622429970,5.8518939,111470.0,111460.0,0.00058516]
[1760622430191,5.87699682,111470.0,111460.0,0.00058516]
[1760622430393,5.86026154,111470.0,111460.0,0.00058516]
[1760622430604,5.90921712,111470.0,111460.0,0.00058516]
[1760622430814,5.88995424,111470.0,111460.0,0.00058516]
[1760622431024,5.90922176,111470.0,111460.0,0.00058516]
[1760622431236,5.92429368,111470.0,111460.0,0.00058516]
[1760622431446,0.17946877,111440.0,111430.0,0.25123697]
[1760622431660,0.17946877,111440.0,111430.0,0.0717521]
[1760622431915,0.17946877,111440.0,111430.0,0.17948487]
[1760622432141,0.17948487,111430.0,111420.0,0.17949611]
[1760622432354,0.17948487,111430.0,111420.0,0.17950098]
[1760622432567,0.17948487,111430.0,111420.0,0.17963545]
[1760622432778,0.95057574,111440.0,111420.0,0.17963545]
[1760622432998,4.583305,111430.0,111420.0,0.17963545]
[1760622433225,0.19000552,111440.0,111420.0,0.17963545]
[1760622433434,0.17948487,111430.0,111420.0,0.17963545]
[1760622433640,4.583305,111430.0,111420.0,0.17963545]
[1760622433850,0.19000552,111440.0,111420.0,0.17963545]
[1760622434065,4.76278987,111430.0,111420.0,0.17963545]
[1760622434272,4.583305,111430.0,111420.0,0.17963545]
[1760622434485,0.17948487,111430.0,111420.0,0.17963545]
[1760622434699,0.19000552,111440.0,111420.0,0.17963545]
[1760622434905,0.17948487,111430.0,111420.0,0.17963545]
[1760622435114,4.583305,111430.0,111420.0,0.17963545]
[1760622435769,0.17948487,111430.0,111420.0,0.17963545]
[1760622435974,0.19000552,111440.0,111430.0,0.17948487]
[1760622436193,4.77331052,111440.0,111430.0,0.17948487]
[1760622436405,5.11331052,111440.0,111430.0,0.17948487]
[1760622436616,5.11331052,111440.0,111420.0,0.17963545]
[1760622436870,4.76278987,111430.0,111420.0,0.17963545]
[1760622437107,5.83269542,111430.0,111420.0,0.00013447]
[1760622437320,5.86492341,111430.0,111420.0,0.00013447]
[1760622437534,5.86492341,111430.0,111420.0,0.00247606]
[1760622437970,5.13501786,111430.0,111420.0,0.00247606]
[1760622438187,5.86492341,111430.0,111420.0,0.00247606]
[1760622438417,5.83269542,111430.0,111420.0,0.00247606]
[1760622438634,0.34,111400.0,111390.0,0.17954397]
[1760622438855,0.34,111400.0,111390.0,0.18004348]
[1760622439075,0.17951709,111410.0,111390.0,0.18004348]
[1760622439076,0.17950212,111420.0,111400.0,0.17951881]
[1760622439292,5.10282209,111410.0,111400.0,0.17951881]
[1760622439545,0.51951709,111410.0,111400.0,0.17951881]
[1760622440399,0.34,111410.0,111400.0,0.17951881]
[1760622440612,0.17950098,111420.0,111410.0,0.17950269]
[1760622440840,4.583305,111420.0,111410.0,0.17950269]
[1760622441089,0.17950098,111420.0,111410.0,0.17950269]
[1760622441503,4.76280598,111420.0,111400.0,0.18949547]
[1760622441719,4.583305,111410.0,111400.0,0.18849547]
[1760622442203,0.17951709,111410.0,111390.0,0.00049951]
[1760622442404,0.17953321,111400.0,111390.0,0.00049951]
[1760622442624,0.17953321,111400.0,111390.0,0.18004884]
[1760622442844,4.76282811,111410.0,111400.0,0.17953211]
[1760622443054,4.76282811,111410.0,111400.0,0.17953321]
[1760622443263,0.17951709,111410.0,111400.0,0.17953321]
[1760622443478,0.52108076,111410.0,111400.0,0.17953321]
[1760622443906,0.34156367,111410.0,111400.0,0.17953321]
[1760622444328,0.34156367,111410.0,111400.0,0.18053321]
[1760622444541,0.00156367,111410.0,111400.0,0.18053321]
[1760622444775,0.18846194,111430.0,111410.0,0.179507]
[1760622444776,0.17950098,111420.0,111410.0,0.179507]
[1760622445000,0.51950098,111420.0,111400.0,0.18053321]
[1760622445425,0.51950098,111420.0,111410.0,0.17951709]
[1760622445843,0.34,111420.0,111410.0,0.17951709]
[1760622446092,0.51950098,111420.0,111410.0,0.17951709]
[1760622448126,0.51950098,111420.0,111400.0,0.17953321]
[1760622448613,0.51950098,111420.0,111410.0,0.17951709]
[1760622449278,0.51950098,111420.0,111400.0,0.17953321]
[1760622449728,0.17953321,111400.0,111390.0,0.18004884]
[1760622449946,0.17951709,111410.0,111390.0,0.18004884]
[1760622450175,0.17953321,111400.0,111390.0,0.18004847]
[1760622450407,0.17953321,111400.0,111390.0,0.00049951]
[1760622450408,5.26283821,111400.0,111390.0,0.00049951]
[1760622450635,0.51953321,111400.0,111390.0,0.00049951]
[1760622450862,5.10283821,111400.0,111390.0,0.0022565]
[1760622451106,5.83274376,111400.0,111390.0,0.0022565]
[1760622451328,0.34,111420.0,111390.0,0.19078329]
[1760622451550,4.583305,111410.0,111390.0,0.18104683]
[1760622451781,0.51953321,111400.0,111390.0,0.00149951]
[1760622452005,0.51953321,111400.0,111390.0,0.00049951]
[1760622452217,0.35858993,111400.0,111390.0,0.18004884]
[1760622452696,0.00156381,111410.0,111400.0,0.17953321]
[1760622452931,0.00156381,111410.0,111400.0,0.19748653]
[1760622453610,4.76277401,111440.0,111420.0,0.17950098]
[1760622453827,0.34156345,111430.0,111420.0,0.17950098]
[1760622454259,0.52104832,111430.0,111420.0,0.17950098]
[1760622454490,0.00156345,111430.0,111420.0,0.19745107]
[1760622454969,0.0207147,111430.0,111420.0,0.19745107]
[1760622455159,0.00156345,111430.0,111420.0,0.19745107]
[1760622457289,0.00156345,111430.0,111420.0,0.17950098]
[1760622457723,0.18104832,111430.0,111410.0,0.18905381]
[1760622458178,0.17950098,111420.0,111410.0,0.00058556]
[1760622458367,5.10280598,111420.0,111410.0,0.00058556]
[1760622458587,5.10280598,111420.0,111410.0,0.18010265]
[1760622459450,0.51950098,111420.0,111410.0,0.18010265]
[1760622459683,0.17948719,111430.0,111420.0,0.17950098]
[1760622459901,4.583305,111420.0,111410.0,0.18010265]
[1760622460144,0.17950098,111420.0,111410.0,0.00058556]
[1760622460361,0.17950098,111420.0,111410.0,0.18010265]
[1760622460809,0.53873049,111430.0,111410.0,0.18010265]
[1760622461021,4.583305,111420.0,111410.0,0.18010265]
[1760622461238,4.76280598,111420.0,111410.0,0.18010265]
[1760622461501,0.17950098,111420.0,111410.0,0.18010265]
[1760622461713,4.583305,111420.0,111410.0,0.18010265]
[1760622462803,0.52104885,111430.0,111420.0,0.17950098]
[1760622463020,0.54030814,111430.0,111410.0,0.18010265]
[1760622463244,0.54030814,111430.0,111420.0,0.17950098]
[1760622463465,0.54030814,111430.0,111410.0,0.00058556]
[1760622463684,4.583305,111420.0,111410.0,0.18010265]
[1760622463910,0.17950098,111420.0,111410.0,0.18010265]
[1760622464396,0.17950098,111420.0,111410.0,0.00058556]
[1760622464629,0.17950098,111420.0,111410.0,0.18010265]
[1760622464853,0.17828623,111420.0,111410.0,0.00058556]
[1760622465282,4.583305,111420.0,111410.0,0.18010265]
[1760622465492,0.19876219,111420.0,111410.0,0.18010265]
[1760622465709,0.17950098,111420.0,111410.0,0.18010265]
[1760622466570,0.38486837,111430.0,111420.0,0.17950098]
[1760622466793,0.02082469,111430.0,111420.0,0.92735662]
[1760622467031,4.583305,111440.0,111430.0,0.17947039]
[1760622467247,4.81746714,111440.0,111420.0,0.18847602]
[1760622467462,0.21547058,111440.0,111430.0,0.17948487]
[1760622467685,0.19619856,111440.0,111420.0,0.18847602]
[1760622467896,0.22024224,111440.0,111420.0,0.18947602]
[1760622468148,0.22024224,111440.0,111420.0,0.18847602]
[1760622468387,4.76278987,111430.0,111420.0,0.17950098]
[1760622468610,0.19875689,111430.0,111420.0,0.18050098]
[1760622468830,0.17948487,111430.0,111420.0,0.17950098]
[1760622469329,0.17948487,111430.0,111410.0,0.18010265]
[1760622469570,0.17948487,111430.0,111410.0,0.18025184]
[1760622469571,0.17950098,111420.0,111410.0,0.18025184]
[1760622470077,0.51950098,111420.0,111410.0,0.00073475]
[1760622470333,5.13880175,111420.0,111410.0,0.00073475]
[1760622470584,5.8687073,111420.0,111410.0,0.00073475]
[1760622470834,5.13880175,111420.0,111410.0,0.00073475]
[1760622471107,5.89275098,111420.0,111410.0,0.00073475]
[1760622471366,5.97511103,111420.0,111410.0,0.00073475]
[1760622471604,0.34,111400.0,111390.0,0.25130143]
[1760622471836,5.10283821,111400.0,111390.0,0.00049951]
[1760622472084,5.12209817,111400.0,111390.0,0.00049951]
[1760622472335,5.5944597,111400.0,111390.0,0.00049951]
[1760622472572,5.10283821,111400.0,111390.0,0.00049951]
[1760622472800,5.12365845,111400.0,111390.0,0.00049951]
[1760622473049,5.59601998,111400.0,111390.0,0.00049951]
[1760622473738,5.14036714,111400.0,111390.0,0.00049951]
[1760622473961,5.14036714,111400.0,111390.0,0.18004884]
[1760622473962,5.12365845,111400.0,111390.0,0.18004884]
[1760622474184,4.94412524,111400.0,111390.0,0.18104884]
[1760622474423,5.12365845,111400.0,111390.0,0.00049951]
[1760622474641,4.94412524,111400.0,111390.0,0.18004884]
[1760622474854,4.58486891,111400.0,111390.0,0.65222551]
[1760622475076,0.17952067,111410.0,111400.0,0.17953321]
[1760622475077,0.17951718,111410.0,111400.0,0.17953321]
[1760622475301,0.03332439,111420.0,111410.0,0.17951709]
[1760622475520,0.01826858,111420.0,111400.0,0.17953321]
[1760622475735,0.17951709,111410.0,111400.0,0.17953321]
[1760622477541,4.583305,111410.0,111400.0,0.17953321]
[1760622477762,0.17953321,111400.0,111390.0,0.00049951]
[1760622477987,0.51953321,111400.0,111390.0,0.00049951]
[1760622478226,0.51953321,111400.0,111390.0,0.18004884]
[1760622478451,0.51953321,111400.0,111390.0,0.00049951]
[1760622478915,5.57501488,111400.0,111390.0,0.00049951]
[1760622479382,5.57657876,111400.0,111390.0,0.00049951]
[1760622479605,5.57501488,111400.0,111390.0,0.00049951]
[1760622479854,5.10283821,111400.0,111390.0,0.00049951]
[1760622481792,5.57501488,111400.0,111390.0,0.00049951]
[1760622482027,5.59425678,111400.0,111390.0,0.00049951]
[1760622482473,5.57501488,111400.0,111390.0,0.00049951]
[1760622484285,5.57657888,111400.0,111390.0,0.00049951]
[1760622484733,5.57657888,111400.0,111390.0,0.00167088]
[1760622487163,5.82597888,111400.0,111390.0,0.00167088]
[1760622489347,5.35380221,111400.0,111390.0,0.00167088]
[1760622489574,5.82597888,111400.0,111390.0,0.00167088]
[1760622490017,5.235031,111390.0,111380.0,0.0004]
[1760622490232,5.23552892,111390.0,111380.0,0.0004]
[1760622490663,5.04012859,111390.0,111380.0,0.00098579]
[1760622490878,5.21967792,111390.0,111380.0,0.00098579]
[1760622491575,4.74750125,111390.0,111380.0,0.00098579]
[1760622492287,0.00049792,111390.0,111380.0,0.18055124]
[1760622492575,0.00049792,111390.0,111380.0,0.00098579]
[1760622492576,0.18004725,111390.0,111380.0,0.00098579]
[1760622492794,4.74750125,111390.0,111380.0,0.00098579]
[1760622493515,0.34049792,111390.0,111380.0,0.18055124]
[1760622493771,0.00049792,111390.0,111380.0,0.73780154]
[1760622493979,0.00049792,111390.0,111380.0,0.26562487]
[1760622494204,0.00049792,111390.0,111380.0,0.65272791]
[1760622494432,0.00049792,111390.0,111380.0,0.74241803]
[1760622494659,0.00049792,111390.0,111380.0,0.77860031]
[1760622495330,0.00049792,111390.0,111380.0,0.77960031]
[1760622495754,0.00049792,111390.0,111380.0,1.11960031]
[1760622495961,0.00049792,111390.0,111380.0,1.20928239]
[1760622496188,0.00049792,111390.0,111380.0,1.30048239]
[1760622496411,0.13697486,111430.0,111400.0,0.17952453]
[1760622496622,4.74695581,111420.0,111400.0,0.28716797]
[1760622496836,0.13697486,111430.0,111410.0,0.17951709]
[1760622497253,0.47697486,111430.0,111420.0,0.17950098]
[1760622497475,0.54845404,111440.0,111430.0,0.17948487]
[1760622497476,0.02898475,111440.0,111430.0,0.17948487]
[1760622497687,4.77590752,111440.0,111420.0,0.17950098]
[1760622497900,4.567454,111430.0,111420.0,0.19745107]
[1760622498330,0.36001132,111440.0,111430.0,0.17948487]
[1760622498556,0.00156354,111440.0,111430.0,0.17948487]
[1760622498843,0.17946877,111440.0,111430.0,0.17948487]
[1760622499299,0.01902226,111440.0,111430.0,0.25226126]
[1760622499516,0.19849103,111440.0,111430.0,0.07277639]
[1760622499737,0.17946877,111440.0,111420.0,0.18847602]
[1760622500175,0.17946877,111440.0,111430.0,0.17948487]
[1760622500393,0.18842581,111450.0,111430.0,0.17948487]
[1760622500619,0.00014942,111450.0,111430.0,0.65166154]
[1760622500837,0.1982654,111450.0,111440.0,0.17946877]
[1760622501060,0.1982654,111450.0,111430.0,0.17948487]
[1760622501290,0.17960208,111450.0,111430.0,0.17948487]
[1760622501992,0.17946877,111440.0,111430.0,0.17948487]
[1760622502219,0.17948487,111430.0,111420.0,0.65167765]
[1760622502447,0.17948487,111430.0,111410.0,0.26024504]
[1760622502671,0.17950098,111420.0,111410.0,0.30059544]
[1760622503118,0.17950098,111420.0,111410.0,0.22884334]
[1760622503344,0.17951709,111410.0,111390.0,0.73243425]
[1760622503568,0.17950098,111420.0,111400.0,0.17953321]
[1760622504690,0.17951709,111410.0,111400.0,0.17953321]
[1760622504912,0.17950098,111420.0,111400.0,0.17953321]
[1760622505384,4.567454,111410.0,111400.0,0.17953321]
[1760622505612,4.567454,111410.0,111400.0,0.26921529]
[1760622505836,4.567454,111410.0,111400.0,0.35890541]
[1760622506068,0.34,111420.0,111410.0,0.17950267]
[1760622506291,0.51950098,111420.0,111410.0,0.19745437]
[1760622506578,0.51950098,111420.0,111410.0,0.17951709]
[1760622507046,0.51950098,111420.0,111400.0,0.27819999]
[1760622507464,0.17951709,111410.0,111400.0,0.17953321]
[1760622507692,0.51950098,111420.0,111410.0,0.17951709]
[1760622508146,0.19000567,111440.0,111420.0,0.17948676]
[1760622508368,0.19000567,111440.0,111430.0,0.17948487]
[1760622508587,0.00156347,111440.0,111430.0,0.17948487]
[1760622508810,0.18103224,111440.0,111430.0,0.17948487]
[1760622509056,4.567454,111440.0,111430.0,0.17948487]
[1760622509507,0.01860663,111450.0,111440.0,0.17946877]
[1760622509728,0.01875605,111450.0,111440.0,0.17946877]
[1760622509947,0.00014942,111450.0,111440.0,0.17946877]
[1760622510179,0.17960208,111450.0,111440.0,0.17946877]
[1760622510673,0.21281219,111450.0,111440.0,0.17946877]
[1760622512006,0.03335953,111450.0,111440.0,0.17946877]
[1760622512232,0.00014942,111450.0,111440.0,0.17946877]
[1760622512459,0.03479531,111450.0,111440.0,0.17946877]
[1760622512681,0.17960208,111450.0,111440.0,0.17946877]
[1760622513178,0.00014942,111450.0,111440.0,0.17946877]
[1760622513418,0.03372018,111450.0,111440.0,0.17946877]
[1760622513653,0.00014942,111450.0,111440.0,0.22376537]
[1760622513906,0.00014942,111450.0,111440.0,0.17946877]
[1760622514128,0.21432622,111450.0,111440.0,0.17946877]
[1760622514576,0.17960208,111450.0,111430.0,0.17948487]
[1760622514811,0.17946877,111440.0,111420.0,0.1884618]
[1760622515028,0.17948487,111430.0,111420.0,0.17950098]
[1760622515267,0.17948487,111430.0,111410.0,0.26024504]
[1760622515499,0.17948487,111430.0,111410.0,0.25126919]
[1760622515949,0.17948487,111430.0,111420.0,0.17950098]